fUST/lending_fUST_20250910
["ID","MTS","AMOUNT","RATE_DAILY","PERIOD"]
[384504145,1757446232358,-480.0,0.00013698,2]
[384504146,1757446232367,-480.0,0.00013698,2]
[384504147,1757446232377,-52.71422556,0.00013698,2]
[384504148,1757446232388,-427.28577444,0.00013698,2]
[384504149,1757446232398,-1492.39,0.00013698,2]
[384504150,1757446232408,-480.0,0.00013698,2]
[384504151,1757446232417,-480.0,0.00013698,2]
[384504152,1757446232426,-189.8063744,0.00013698,2]
[384504164,1757446237796,-290.1936256,0.00013698,2]
[384504165,1757446237805,-480.0,0.00013698,2]
[384504166,1757446237814,-225.36685619,0.00013698,2]
[384504167,1757446237850,-402.64314381,0.00013698,2]
[384504168,1757446237860,-480.0,0.00013698,2]
[384504169,1757446237869,-480.0,0.00013698,2]
[384504170,1757446237879,-480.0,0.00013698,2]
[384504171,1757446237889,-480.0,0.00013698,2]
[384504172,1757446237898,-480.0,0.00013698,2]
[384504173,1757446237914,-480.0,0.00013698,2]
[384504174,1757446237924,-491.42,0.00013698,2]
[384504175,1757446237934,-480.0,0.00013698,2]
[384504176,1757446237943,-480.0,0.00013698,2]
[384504177,1757446237954,-702.2,0.00013698,2]
[384504179,1757446237964,-480.0,0.00013698,2]
[384504181,1757446237973,-24.65955057,0.00013698,2]
[384504183,1757446237984,-455.34044943,0.00013698,2]
[384504184,1757446237993,-188.68303719,0.00013698,2]
[384504185,1757446238005,-378.79696281,0.00013698,2]
[384504186,1757446238014,-480.0,0.00013698,2]
[384504187,1757446238023,-480.0,0.00013698,2]
[384504188,1757446238032,-118.88239269,0.00013698,2]
[384504226,1757446239979,-300.0,0.00013697,2]
[384504227,1757446239991,-10.42301069,0.00013697,2]
[384504228,1757446240000,-350.10039227,0.00013697,2]
[384504229,1757446240040,-67.36567928,0.00013697,2]
[384504230,1757446240049,-361.11760731,0.00013698,2]
[384504231,1757446240058,-651.2,0.00013698,2]
[384504232,1757446240067,-37.49171339,0.00013698,2]
[384504233,1757446240078,-442.50828661,0.00013698,2]
[384504234,1757446240087,-294.73084628,0.00013698,2]
[384504235,1757446240096,-480.0,0.00013698,2]
[384504236,1757446240105,-480.0,0.00013698,2]
[384504237,1757446240114,-480.0,0.00013698,2]
[384504238,1757446240123,-596.88,0.00013698,2]
[384504254,1757446240290,-480.0,0.00013698,2]
[384504256,1757446240300,-480.0,0.00013698,2]
[384504258,1757446240310,-480.0,0.00013698,2]
[384504260,1757446240319,-609.31,0.00013698,2]
[384504262,1757446240334,-578.28,0.00013698,2]
[384504264,1757446240349,-842.29,0.00013698,2]
[384504266,1757446240359,-480.0,0.00013698,2]
[384504268,1757446240372,-480.0,0.00013698,2]
[384504270,1757446240381,-1391.58,0.00013698,2]
[384504272,1757446240391,-20529.49,0.00013698,2]
[384504274,1757446240400,-620.62,0.00013698,2]
[384504276,1757446240409,-2582.59,0.00013698,2]
[384504278,1757446240419,-2355.54,0.00013698,2]
[384504280,1757446240428,-378.82841263,0.00013698,2]
[384504282,1757446240438,-564.3,0.00013698,2]
[384504284,1757446240447,-480.0,0.00013698,2]
[384504286,1757446240457,-877.37,0.00013698,2]
[384504288,1757446240466,-2087.28,0.00013698,2]
[384504290,1757446240476,-568.71,0.00013698,2]
[384504292,1757446240485,-522.93,0.00013698,2]
[384504294,1757446240494,-626.05,0.00013698,2]
[384504296,1757446240505,-480.0,0.00013698,2]
[384504298,1757446240514,-1047.89,0.00013698,2]
[384504300,1757446240524,-480.0,0.00013698,2]
[384504302,1757446240533,-480.0,0.00013698,2]
[384504304,1757446240542,-1551.55,0.00013698,2]
[384504306,1757446240552,-983.58,0.00013698,2]
[384504308,1757446240561,-859.68,0.00013698,2]
[384504310,1757446240570,-531.58,0.00013698,2]
[384504312,1757446240579,-480.0,0.00013698,2]
[384504314,1757446240589,-480.0,0.00013698,2]
[384504316,1757446240598,-480.0,0.00013698,2]
[384504318,1757446240607,-480.0,0.00013698,2]
[384504320,1757446240616,-1672.19,0.00013698,2]
[384504322,1757446240625,-695.3,0.00013698,2]
[384504324,1757446240635,-480.0,0.00013698,2]
[384504326,1757446240644,-489.22,0.00013698,2]
[384504328,1757446240653,-641.01,0.00013698,2]
[384504330,1757446240662,-480.0,0.00013698,2]
[384504332,1757446240672,-480.0,0.00013698,2]
[384504334,1757446240681,-247.19650895,0.00013698,2]
[384504336,1757446240690,-681.52,0.00013698,2]
[384504338,1757446240699,-480.0,0.00013698,2]
[384504340,1757446240708,-480.0,0.00013698,2]
[384504342,1757446240717,-480.0,0.00013698,2]
[384504344,1757446240727,-711.93,0.00013698,2]
[384504346,1757446240736,-480.0,0.00013698,2]
[384504348,1757446240745,-2336.17,0.00013698,2]
[384504350,1757446240754,-480.0,0.00013698,2]
[384504352,1757446240764,-480.0,0.00013698,2]
[384504354,1757446240773,-480.0,0.00013698,2]
[384504356,1757446240783,-846.62,0.00013698,2]
[384504358,1757446240792,-634.31,0.00013698,2]
[384504360,1757446240801,-480.0,0.00013698,2]
[384504362,1757446240810,-508.23,0.00013698,2]
[384504364,1757446240819,-480.0,0.00013698,2]
[384504365,1757446240828,-480.0,0.00013698,2]
[384504367,1757446240837,-480.0,0.00013698,2]
[384504369,1757446240847,-1352.91,0.00013698,2]
[384504371,1757446240857,-1069.10284681,0.00013698,2]
[384504501,1757446242072,550.41862316,0.00013597,2]
[384504506,1757446242115,306.8184955,0.00013597,2]
[384506004,1757446257624,500.0,0.00013597,2]
[384506010,1757446257679,500.0,0.00013597,2]
[384506555,1757446269245,500.0,0.00013597,2]
[384506556,1757446283061,500.0,0.00013597,2]
[384506557,1757446283104,592.89350776,0.00013597,2]
[384506558,1757446300803,500.0,0.00013597,2]
[384506559,1757446300860,500.0,0.00013597,2]
[384506560,1757446318639,500.0,0.00013597,2]
[384506561,1757446318691,500.0,0.00013597,2]
[384506562,1757446323635,213.71666022,0.00013598,2]
[384506563,1757446336612,500.0,0.00013597,2]
[384506564,1757446336642,500.0,0.00013597,2]
[384506566,1757446354420,500.0,0.00013597,2]
[384506567,1757446354451,500.0,0.00013597,2]
[384506571,1757446520748,47.66748998,0.00013185,2]
[384506572,1757446520771,452.33251002,0.00013185,2]
[384506587,1757446603934,187.00207771,0.00013598,2]
[384506635,1757446889322,163.62681797,0.00013598,2]
[384506642,1757446917199,258.0,0.00027397,120]
[384506726,1757447169867,163.62681796,0.00013598,2]
[384506727,1757447171985,225.42585084,0.00013352,2]
[384506729,1757447174250,900.80169996,0.00013352,2]
[384506766,1757447303942,557.31342899,0.00013352,2]
[384506767,1757447308801,2229.25371597,0.00013352,2]
[384506768,1757447311625,5010.80504007,0.00013352,2]
[384506789,1757447432208,-300.0,0.00013696,2]
[384506790,1757447432219,-300.0,0.00013696,2]
[384506791,1757447432230,-14854.54671356,0.00013697,2]
[384506792,1757447432240,-500.0,0.00013697,2]
[384506793,1757447432249,-257.08220087,0.00013697,2]
[384506794,1757447432259,-500.0,0.00013697,2]
[384506795,1757447432268,-153.96260763,0.00013697,2]
[384506796,1757447432277,-500.0,0.00013697,2]
[384506797,1757447432287,-522.16368951,0.00013697,2]
[384506798,1757447432296,-500.0,0.00013697,2]
[384506799,1757447432305,-500.0,0.00013697,2]
[384506800,1757447432315,-500.0,0.00013697,2]
[384506801,1757447432324,-500.0,0.00013697,2]
[384506802,1757447432333,-500.0,0.00013697,2]
[384506803,1757447432343,-437.46866558,0.00013697,2]
[384506804,1757447432353,-500.0,0.00013697,2]
[384506805,1757447432363,-500.0,0.00013697,2]
[384506806,1757447432372,-500.0,0.00013697,2]
[384506807,1757447432381,-500.0,0.00013697,2]
[384506808,1757447432390,-500.0,0.00013697,2]
[384506809,1757447432400,-500.0,0.00013697,2]
[384506810,1757447432410,-500.0,0.00013697,2]
[384506811,1757447432419,-500.0,0.00013697,2]
[384506812,1757447432428,-216.67382257,0.00013697,2]
[384506813,1757447432437,-500.0,0.00013697,2]
[384506814,1757447432448,-500.0,0.00013697,2]
[384506815,1757447432458,-500.0,0.00013697,2]
[384506816,1757447432467,-500.0,0.00013697,2]
[384506817,1757447432477,-500.0,0.00013697,2]
[384506818,1757447432486,-500.0,0.00013697,2]
[384506819,1757447432496,-500.0,0.00013697,2]
[384506820,1757447432507,-500.0,0.00013697,2]
[384506821,1757447432521,-480.02024883,0.00013697,2]
[384506822,1757447432531,-500.0,0.00013697,2]
[384506823,1757447432540,-500.0,0.00013697,2]
[384506824,1757447432549,-500.0,0.00013697,2]
[384506825,1757447432559,-500.0,0.00013697,2]
[384506826,1757447432568,-500.0,0.00013697,2]
[384506827,1757447432578,-500.0,0.00013697,2]
[384506828,1757447432589,-500.0,0.00013697,2]
[384506829,1757447432599,-500.0,0.00013697,2]
[384506830,1757447432609,-500.0,0.00013697,2]
[384506831,1757447432618,-500.0,0.00013697,2]
[384506832,1757447432628,-500.0,0.00013697,2]
[384506833,1757447432637,-500.0,0.00013697,2]
[384506834,1757447432648,-500.0,0.00013697,2]
[384506835,1757447432658,-500.0,0.00013697,2]
[384506836,1757447432667,-500.0,0.00013697,2]
[384506837,1757447432678,-500.0,0.00013697,2]
[384506838,1757447432687,-500.0,0.00013697,2]
[384506839,1757447432697,-500.0,0.00013697,2]
[384506840,1757447432707,-500.0,0.00013697,2]
[384506841,1757447432717,-401.59248497,0.00013697,2]
[384506842,1757447432727,-500.0,0.00013697,2]
[384506843,1757447432736,-500.0,0.00013697,2]
[384506844,1757447432745,-500.0,0.00013697,2]
[384506845,1757447432754,-500.0,0.00013697,2]
[384506846,1757447432763,-500.0,0.00013697,2]
[384506847,1757447432773,-423.40496119,0.00013697,2]
[384506848,1757447432782,-500.0,0.00013697,2]
[384506849,1757447432791,-500.0,0.00013697,2]
[384506850,1757447432800,-500.0,0.00013697,2]
[384506851,1757447432810,-500.0,0.00013697,2]
[384506852,1757447432820,-500.0,0.00013697,2]
[384506853,1757447432829,-524.99794334,0.00013697,2]
[384506854,1757447432840,-500.0,0.00013697,2]
[384506855,1757447432851,-500.0,0.00013697,2]
[384506856,1757447432861,-157.52932422,0.00013697,2]
[384506857,1757447432870,-500.0,0.00013697,2]
[384506858,1757447432880,-500.0,0.00013697,2]
[384506859,1757447432889,-500.0,0.00013697,2]
[384506860,1757447432899,-500.0,0.00013697,2]
[384506861,1757447432909,-500.0,0.00013697,2]
[384506862,1757447432919,-566.82061345,0.00013697,2]
[384506863,1757447432928,-500.0,0.00013697,2]
[384506864,1757447432938,-500.0,0.00013697,2]
[384506865,1757447432947,-500.0,0.00013697,2]
[384506866,1757447432956,-500.0,0.00013697,2]
[384506867,1757447432966,-500.0,0.00013697,2]
[384506868,1757447432975,-500.0,0.00013697,2]
[384506869,1757447432985,-500.0,0.00013697,2]
[384506870,1757447432995,-500.0,0.00013697,2]
[384506871,1757447433004,-500.0,0.00013697,2]
[384506872,1757447433013,-500.0,0.00013697,2]
[384506873,1757447433022,-500.0,0.00013697,2]
[384506874,1757447433031,-360.13422259,0.00013697,2]
[384506875,1757447433041,-200.00307879,0.00013697,2]
[384506876,1757447433058,-277.94464223,0.00013697,2]
[384506877,1757447437962,-22.05227898,0.00013697,2]
[384506878,1757447437972,-500.0,0.00013697,2]
[384506879,1757447437981,-500.0,0.00013697,2]
[384506880,1757447437990,-500.0,0.00013697,2]
[384506881,1757447438000,-500.0,0.00013697,2]
[384506882,1757447438009,-170.73695317,0.00013697,2]
[384506883,1757447438019,-500.0,0.00013697,2]
[384506884,1757447438029,-500.0,0.00013697,2]
[384506885,1757447438038,-500.0,0.00013697,2]
[384506886,1757447438048,-500.0,0.00013697,2]
[384506887,1757447438058,-500.0,0.00013697,2]
[384506888,1757447438067,-500.0,0.00013697,2]
[384506889,1757447438077,-155.13459599,0.00013697,2]
[384506890,1757447438087,-500.0,0.00013697,2]
[384506891,1757447438097,-500.0,0.00013697,2]
[384506892,1757447438107,-500.0,0.00013697,2]
[384506893,1757447438118,-500.0,0.00013697,2]
[384506894,1757447438127,-500.0,0.00013697,2]
[384506895,1757447438136,-500.0,0.00013697,2]
[384506896,1757447438145,-500.0,0.00013697,2]
[384506897,1757447438154,-500.0,0.00013697,2]
[384506898,1757447438163,-353.97633509,0.00013697,2]
[384506899,1757447438172,-500.0,0.00013697,2]
[384506900,1757447438182,-500.0,0.00013697,2]
[384506901,1757447438191,-281.93475859,0.00013697,2]
[384506902,1757447438201,-480.0,0.00013698,2]
[384506903,1757447438210,-480.0,0.00013698,2]
[384506904,1757447438219,-480.0,0.00013698,2]
[384506905,1757447438229,-480.0,0.00013698,2]
[384506906,1757447438238,-480.0,0.00013698,2]
[384506907,1757447438247,-480.0,0.00013698,2]
[384506908,1757447438259,-480.0,0.00013698,2]
[384506909,1757447438268,-769.12,0.00013698,2]
[384506910,1757447438277,-480.0,0.00013698,2]
[384506911,1757447438286,-480.0,0.00013698,2]
[384506912,1757447438295,-215.55300374,0.00013698,2]
[384506913,1757447438307,-94.71780793,0.00013698,2]
[384506914,1757447438316,-315.60065311,0.00013698,2]
[384506915,1757447438328,-164.39934689,0.00013698,2]
[384506916,1757447438337,-480.0,0.00013698,2]
[384506917,1757447438348,-480.0,0.00013698,2]
[384506918,1757447438357,-480.0,0.00013698,2]
[384506919,1757447438366,-480.0,0.00013698,2]
[384506920,1757447438375,-482.11932971,0.00013698,2]
[384506921,1757447438384,-480.0,0.00013698,2]
[384506922,1757447438393,-480.0,0.00013698,2]
[384506923,1757447438403,-280.35279556,0.00013698,2]
[384506924,1757447438414,-199.64720444,0.00013698,2]
[384506925,1757447438424,-930.64,0.00013698,2]
[384506926,1757447438433,-480.0,0.00013698,2]
[384506927,1757447438442,-480.0,0.00013698,2]
[384506928,1757447438451,-577.67,0.00013698,2]
[384506929,1757447438461,-480.0,0.00013698,2]
[384506930,1757447438471,-480.0,0.00013698,2]
[384506931,1757447438480,-480.0,0.00013698,2]
[384506932,1757447438490,-480.0,0.00013698,2]
[384506933,1757447438499,-612.25,0.00013698,2]
[384506934,1757447438508,-480.0,0.00013698,2]
[384506935,1757447438519,-600.5,0.00013698,2]
[384506936,1757447438529,-480.0,0.00013698,2]
[384506937,1757447438538,-480.0,0.00013698,2]
[384506938,1757447438547,-480.0,0.00013698,2]
[384506939,1757447438556,-480.0,0.00013698,2]
[384506940,1757447438566,-1496.35,0.00013698,2]
[384506941,1757447438575,-480.0,0.00013698,2]
[384506942,1757447438584,-480.0,0.00013698,2]
[384506943,1757447438594,-480.0,0.00013698,2]
[384506944,1757447438603,-480.0,0.00013698,2]
[384506945,1757447438612,-480.0,0.00013698,2]
[384506946,1757447438621,-480.0,0.00013698,2]
[384506947,1757447438630,-480.0,0.00013698,2]
[384506948,1757447438639,-482.22,0.00013698,2]
[384506949,1757447438648,-480.0,0.00013698,2]
[384506950,1757447438657,-490.94,0.00013698,2]
[384506951,1757447438667,-480.0,0.00013698,2]
[384506952,1757447438679,-480.0,0.00013698,2]
[384506953,1757447438688,-480.0,0.00013698,2]
[384506954,1757447438697,-480.0,0.00013698,2]
[384506955,1757447438706,-289.51,0.00013698,2]
[384506956,1757447438715,-486.78,0.00013698,2]
[384506957,1757447438724,-408.07006698,0.00013698,2]
[384506958,1757447438737,-215.99993302,0.00013698,2]
[384506959,1757447438746,-480.0,0.00013698,2]
[384506960,1757447438755,-172.95966696,0.00013698,2]
[384506961,1757447438766,-532.42033304,0.00013698,2]
[384506962,1757447438775,-480.0,0.00013698,2]
[384506963,1757447438784,-480.0,0.00013698,2]
[384506964,1757447438794,-480.0,0.00013698,2]
[384506965,1757447438803,-480.0,0.00013698,2]
[384506966,1757447438813,-3659.25752157,0.00013698,2]
[384506967,1757447438825,-398.04150106,0.00013698,2]
[384507004,1757447440114,-243.75097737,0.00013698,2]
[384507006,1757447440124,-480.0,0.00013698,2]
[384507008,1757447440133,-480.0,0.00013698,2]
[384507010,1757447440142,-480.0,0.00013698,2]
[384507012,1757447440152,-1928.9,0.00013698,2]
[384507014,1757447440161,-607.58974535,0.00013698,2]
[384507016,1757447440171,-480.0,0.00013698,2]
[384507018,1757447440180,-480.0,0.00013698,2]
[384507021,1757447440190,-480.0,0.00013698,2]
[384507023,1757447440199,-563.83,0.00013698,2]
[384507025,1757447440208,-480.0,0.00013698,2]
[384507027,1757447440218,-572.01,0.00013698,2]
[384507029,1757447440227,-480.0,0.00013698,2]
[384507031,1757447440237,-2928.44,0.00013698,2]
[384507033,1757447440246,-480.0,0.00013698,2]
[384507035,1757447440255,-480.0,0.00013698,2]
[384507037,1757447440264,-841.05,0.00013698,2]
[384507040,1757447440274,-2744.68,0.00013698,2]
[384507042,1757447440283,-480.0,0.00013698,2]
[384507043,1757447440292,-615.64,0.00013698,2]
[384507045,1757447440301,-480.0,0.00013698,2]
[384507047,1757447440310,-480.0,0.00013698,2]
[384507049,1757447440319,-2257.39,0.00013698,2]
[384507051,1757447440329,-1333.6,0.00013698,2]
[384507053,1757447440338,-618.42766427,0.00013698,2]
[384507055,1757447440347,-2474.98,0.00013698,2]
[384507057,1757447440356,-554.19,0.00013698,2]
[384507059,1757447440365,-2000.31,0.00013698,2]
[384507061,1757447440375,-594.76,0.00013698,2]
[384507063,1757447440384,-540.78,0.00013698,2]
[384507065,1757447440393,-501.14,0.00013698,2]
[384507067,1757447440403,-615.37,0.00013698,2]
[384507069,1757447440412,-480.0,0.00013698,2]
[384507071,1757447440422,-545.01,0.00013698,2]
[384507074,1757447440431,-20581.7,0.00013698,2]
[384507076,1757447440441,-480.0,0.00013698,2]
[384507078,1757447440451,-480.0,0.00013698,2]
[384507080,1757447440461,-1052.14,0.00013698,2]
[384507082,1757447440470,-927.83,0.00013698,2]
[384507084,1757447440479,-823.86,0.00013698,2]
[384507086,1757447440490,-480.0,0.00013698,2]
[384507089,1757447440500,-279.17,0.00013698,2]
[384507091,1757447440510,-480.0,0.00013698,2]
[384507093,1757447440523,-480.0,0.00013698,2]
[384507095,1757447440532,-509.43,0.00013698,2]
[384507097,1757447440542,-942.6,0.00013698,2]
[384507099,1757447440551,-480.0,0.00013698,2]
[384507101,1757447440560,-480.0,0.00013698,2]
[384507102,1757447440570,-480.0,0.00013698,2]
[384507104,1757447440580,-165.9711365,0.00013698,2]
[384507106,1757447440589,-480.0,0.00013698,2]
[384507108,1757447440599,-480.0,0.00013698,2]
[384507111,1757447440609,-480.69313454,0.00013698,2]
[384507113,1757447440619,-480.0,0.00013698,2]
[384507115,1757447440629,-666.33,0.00013698,2]
[384507117,1757447440638,-480.0,0.00013698,2]
[384507119,1757447440647,-653.13,0.00013698,2]
[384507121,1757447440657,-614.3,0.00013698,2]
[384507123,1757447440666,-480.0,0.00013698,2]
[384507125,1757447440676,-1602.52,0.00013698,2]
[384507127,1757447440685,-1642.65,0.00013698,2]
[384507129,1757447440694,-487.05,0.00013698,2]
[384507131,1757447440703,-480.0,0.00013698,2]
[384507133,1757447440713,-480.0,0.00013698,2]
[384507135,1757447440722,-480.0,0.00013698,2]
[384507136,1757447440731,-682.27,0.00013698,2]
[384507138,1757447440740,-480.0,0.00013698,2]
[384507140,1757447440750,-480.0,0.00013698,2]
[384507142,1757447440759,-480.0,0.00013698,2]
[384507144,1757447440769,-488.84,0.00013698,2]
[384507146,1757447440778,-485.42472001,0.00013698,2]
[384507149,1757447440787,-480.0,0.00013698,2]
[384507152,1757447440797,-480.0,0.00013698,2]
[384507154,1757447440807,-1083.81,0.00013698,2]
[384507156,1757447440816,-480.0,0.00013698,2]
[384507158,1757447440826,-480.0,0.00013698,2]
[384507160,1757447440835,-551.16,0.00013698,2]
[384507162,1757447440844,-2352.76,0.00013698,2]
[384507164,1757447440853,-480.0,0.00013698,2]
[384507166,1757447440862,-480.0,0.00013698,2]
[384507168,1757447440871,-1902.56,0.00013698,2]
[384507170,1757447440880,-480.0,0.00013698,2]
[384507172,1757447440891,-480.0,0.00013698,2]
[384507174,1757447440901,-8401.76,0.00013698,2]
[384507176,1757447440909,-638.48,0.00013698,2]
[384507178,1757447440919,-841.79,0.00013698,2]
[384507180,1757447440928,-1001.2,0.00013698,2]
[384507182,1757447440937,-321.260043,0.00013698,2]
[384507184,1757447440946,-480.0,0.00013698,2]
[384507186,1757447440955,-151.0,0.00013698,2]
[384507188,1757447440964,-154.96604367,0.00013698,2]
[384507190,1757447440974,-229.79,0.00013698,2]
[384507192,1757447440983,-480.0,0.00013698,2]
[384507194,1757447440992,-1105.43,0.00013698,2]
[384507196,1757447441002,-669.04,0.00013698,2]
[384507198,1757447441011,-480.0,0.00013698,2]
[384507200,1757447441021,-3844.56,0.00013698,2]
[384507202,1757447441029,-866.6,0.00013698,2]
[384507204,1757447441039,-1296.54,0.00013698,2]
[384507206,1757447441048,-498.37,0.00013698,2]
[384507208,1757447441057,-1238.95,0.00013698,2]
[384507210,1757447441066,-160.63,0.00013698,2]
[384507212,1757447441076,-480.0,0.00013698,2]
[384507214,1757447441086,-500.0,0.00013698,2]
[384507216,1757447441095,-954.903292,0.00013699,2]
[384507218,1757447441104,-500.0,0.00013733,2]
[384507220,1757447441113,-160.0,0.00013813,2]
[384507222,1757447441122,-160.0,0.00013813,2]
[384507225,1757447441132,-846.80158213,0.00013813,2]
[384507227,1757447441141,-217.65034598,0.00013813,2]
[384507229,1757447441150,-160.0,0.00013813,2]
[384507230,1757447441158,-233.05759179,0.00013813,2]
[384507233,1757447441168,-203.28455737,0.00013813,2]
[384507234,1757447441177,-530.79566296,0.00013813,2]
[384507236,1757447441187,-417.15472785,0.00013813,2]
[384507238,1757447441196,-315.61263008,0.00013872,2]
[384507241,1757447441206,-300.0,0.00013971,2]
[384507243,1757447441215,-300.0,0.00013971,2]
[384507245,1757447441225,-300.0,0.00013971,2]
[384507247,1757447441234,-300.0,0.00013971,2]
[384507249,1757447441244,-300.0,0.00013971,2]
[384507251,1757447441253,-300.0,0.00013971,2]
[384507253,1757447441262,-300.0,0.00013971,2]
[384507255,1757447441271,-300.0,0.00013971,2]
[384507257,1757447441280,-300.0,0.00013971,2]
[384507259,1757447441289,-300.0,0.00013971,2]
[384507261,1757447441298,-300.0,0.00013971,2]
[384507263,1757447441306,-300.0,0.00013971,2]
[384507265,1757447441315,-300.0,0.00013971,2]
[384507267,1757447441324,-300.0,0.00013971,2]
[384507269,1757447441334,-300.0,0.00013971,2]
[384507271,1757447441343,-600.0,0.00013971,2]
[384507273,1757447441351,-1929.06216618,0.00013972,2]
[384507275,1757447441360,-480.0,0.00013972,2]
[384507277,1757447441369,-480.0,0.00013972,2]
[384507279,1757447441378,-480.0,0.00013972,2]
[384507281,1757447441387,-480.0,0.00013972,2]
[384507283,1757447441397,-769.12,0.00013972,2]
[384507285,1757447441406,-480.0,0.00013972,2]
[384507287,1757447441415,-480.0,0.00013972,2]
[384507289,1757447441424,-480.0,0.00013972,2]
[384507291,1757447441433,-930.64,0.00013972,2]
[384507293,1757447441442,-480.0,0.00013972,2]
[384507295,1757447441451,-480.0,0.00013972,2]
[384507296,1757447441460,-577.67,0.00013972,2]
[384507298,1757447441470,-480.0,0.00013972,2]
[384507300,1757447441479,-480.0,0.00013972,2]
[384507302,1757447441488,-612.25,0.00013972,2]
[384507304,1757447441497,-153.63,0.00013972,2]
[384507306,1757447441507,-480.0,0.00013972,2]
[384507308,1757447441519,-600.5,0.00013972,2]
[384507310,1757447441528,-480.0,0.00013972,2]
[384507312,1757447441538,-1496.35,0.00013972,2]
[384507314,1757447441547,-216.88584289,0.00013972,2]
[384507486,1757447443348,-0.01114593,0.00013972,2]
[384507759,1757447446172,-263.10301118,0.00013972,2]
[384507761,1757447446182,-480.0,0.00013972,2]
[384507763,1757447446192,-480.0,0.00013972,2]
[384507765,1757447446201,-482.22,0.00013972,2]
[384507767,1757447446211,-480.0,0.00013972,2]
[384507769,1757447446220,-490.94,0.00013972,2]
[384507771,1757447446230,-238.08533561,0.00013972,2]
[384507773,1757447446239,-480.0,0.00013972,2]
[384507775,1757447446248,-480.0,0.00013972,2]
[384507777,1757447446257,-486.78,0.00013972,2]
[384507779,1757447446266,-624.07,0.00013972,2]
[384507781,1757447446275,-329.44128998,0.00013972,2]
[384507785,1757447446296,-150.55871002,0.00013972,2]
[384507787,1757447446306,-705.38,0.00013972,2]
[384507788,1757447446315,-473.28977595,0.00013972,2]
[384513488,1757447532683,163.62681796,0.00013598,2]
[384513489,1757447550214,300.0,0.0001356,2]
[384513490,1757447566556,300.0,0.0001356,2]
[384513491,1757447567984,161.41,0.00012329,2]
[384513492,1757447574951,300.0,0.0001356,2]
[384513493,1757447578538,76.79929705,0.00012329,2]
[384513494,1757447578564,730.28070295,0.00012329,2]
[384513495,1757447590825,300.0,0.00013561,2]
[384513496,1757447598728,300.0,0.00013561,2]
[384513497,1757447638512,300.0,0.00013561,2]
[384513499,1757447647698,300.0,0.0001356,2]
[384513500,1757447671746,300.0,0.0001356,2]
[384513522,1757447695771,300.0,0.0001356,2]
[384513525,1757447718906,300.0,0.00013559,2]
[384513526,1757447741598,300.0,0.00013559,2]
[384513527,1757447765220,327.72554785,0.0001356,2]
[384513528,1757447772690,896.13716005,0.00013352,2]
[384513529,1757447775242,3580.96409154,0.00013352,2]
[384513535,1757447852137,174.42974452,0.00013598,2]
[384513536,1757447906095,405.29652335,0.00013352,2]
[384513537,1757447908136,1485.17622974,0.00013352,2]